fUSD/lending_fUSD_20260614
["ID","MTS","AMOUNT","RATE_DAILY","PERIOD"]
[424978020,1781367057000,-151.0,0.00018471,2]
[424978002,1781367057000,-504.0,0.00018,2]
[424977987,1781367057000,-2005.9555727,0.00017923,2]
[424978007,1781367057000,-546.7324081,0.000182,2]
[424977989,1781367057000,-300.0,0.00017999,2]
[424977985,1781367057000,-8255.724264,0.000179,2]
[424977991,1781367057000,-300.0,0.00017999,2]
[424977992,1781367057000,-300.0,0.00017999,2]
[424977994,1781367057000,-10310.022,0.00018,2]
[424977995,1781367057000,-166.05435716,0.00018,2]
[424977993,1781367057000,-300.0,0.00017999,2]
[424977990,1781367057000,-666.0,0.00017999,2]
[424977997,1781367057000,-10055.58894355,0.00018,2]
[424977998,1781367057000,-546.7324081,0.00018,2]
[424978001,1781367057000,-1210.03455743,0.00018,2]
[424978003,1781367057000,-1805.70474062,0.000181,2]
[424978004,1781367057000,-166.05435716,0.000182,2]
[424978005,1781367057000,-8255.724264,0.000182,2]
[424978000,1781367057000,-111085.35337572,0.00018,2]
[424977996,1781367057000,-8255.724264,0.00018,2]
[424977999,1781367057000,-350.0,0.00018,2]
[424978006,1781367057000,-10055.58894355,0.000182,2]
[424978064,1781367058000,-10055.58894355,0.000188,2]
[424978067,1781367058000,-8255.724264,0.00019,2]
[424978066,1781367058000,-200.0,0.00019,2]
[424978061,1781367058000,-10055.58894355,0.000186,2]
[424978060,1781367058000,-8255.724264,0.000186,2]
[424978058,1781367058000,-151.0,0.00018471,2]
[424978062,1781367058000,-546.7324081,0.000187,2]
[424978065,1781367058000,-504.0,0.00018805,2]
[424978057,1781367058000,-151.0,0.00018471,2]
[424978081,1781367058000,-151.0,0.00019178,2]
[424978059,1781367058000,-546.7324081,0.000185,2]
[424978068,1781367058000,-10055.58894355,0.00019,2]
[424978088,1781367058000,-151.0,0.00019178,2]
[424978073,1781367058000,-151.0,0.00019019,2]
[424978071,1781367058000,-6053.88351375,0.00019,2]
[424978070,1781367058000,-1493.58466283,0.00019,2]
[424978074,1781367058000,-2157.14243826,0.00019019,2]
[424978072,1781367058000,-200.0,0.00019019,2]
[424978069,1781367058000,-5247.63497397,0.00019,2]
[424978075,1781367058000,-10055.58894355,0.000191,2]
[424978078,1781367058000,-151.0,0.00019178,2]
[424978077,1781367058000,-151.0,0.00019178,2]
[424978080,1781367058000,-151.0,0.00019178,2]
[424978056,1781367058000,-151.0,0.00018471,2]
[424978076,1781367058000,-3000.0,0.00019178,2]
[424978063,1781367058000,-8255.724264,0.000188,2]
[424978038,1781367058000,-151.0,0.00018471,2]
[424978055,1781367058000,-151.0,0.00018471,2]
[424978079,1781367058000,-151.0,0.00019178,2]
[424978032,1781367058000,-151.0,0.00018471,2]
[424978031,1781367058000,-500.0,0.00018471,2]
[424978033,1781367058000,-151.0,0.00018471,2]
[424978030,1781367058000,-151.0,0.00018471,2]
[424978034,1781367058000,-500.0,0.00018471,2]
[424978039,1781367058000,-500.0,0.00018471,2]
[424978037,1781367058000,-500.0,0.00018471,2]
[424978035,1781367058000,-151.0,0.00018471,2]
[424978043,1781367058000,-151.0,0.00018471,2]
[424978040,1781367058000,-151.0,0.00018471,2]
[424978054,1781367058000,-151.0,0.00018471,2]
[424978042,1781367058000,-500.0,0.00018471,2]
[424978036,1781367058000,-151.0,0.00018471,2]
[424978045,1781367058000,-500.0,0.00018471,2]
[424978050,1781367058000,-151.0,0.00018471,2]
[424978047,1781367058000,-151.0,0.00018471,2]
[424978046,1781367058000,-500.0,0.00018471,2]
[424978044,1781367058000,-151.0,0.00018471,2]
[424978048,1781367058000,-151.0,0.00018471,2]
[424978051,1781367058000,-151.0,0.00018471,2]
[424978049,1781367058000,-500.0,0.00018471,2]
[424978053,1781367058000,-151.0,0.00018471,2]
[424978052,1781367058000,-500.0,0.00018471,2]
[424978041,1781367058000,-151.0,0.00018471,2]
[424978082,1781367058000,-155.028236,0.00019178,2]
[424978134,1781367058000,-200000.0,0.0002,2]
[424978083,1781367058000,-151.0,0.00019178,2]
[424978113,1781367058000,-1477.0,0.00019452,5]
[424978115,1781367058000,-300.0,0.00019499,2]
[424978118,1781367058000,-200.0,0.00019567,2]
[424978116,1781367058000,-10055.58894355,0.000195,2]
[424978120,1781367058000,-2236.95670847,0.00019567,2]
[424978117,1781367058000,-139780.7274445,0.000195,2]
[424978119,1781367058000,-151.0,0.00019567,2]
[424978121,1781367058000,-504.0,0.0001961,3]
[424978123,1781367058000,-10055.58894355,0.000197,2]
[424978125,1781367058000,-169.46608201,0.00019774,2]
[424978128,1781367058000,-184.33867712,0.000199,2]
[424978114,1781367058000,-300.0,0.00019499,2]
[424978133,1781367058000,-500.0,0.00019999,2]
[424978126,1781367058000,-10055.58894355,0.000199,2]
[424978124,1781367058000,-1125.99999999,0.00019743,2]
[424978131,1781367058000,-300.0,0.00019999,2]
[424978132,1781367058000,-300.0,0.00019999,2]
[424978129,1781367058000,-300.0,0.00019999,2]
[424978130,1781367058000,-300.0,0.00019999,2]
[424978135,1781367058000,-200.0,0.0002,2]
[424978138,1781367058000,-150.0,0.0002,2]
[424978137,1781367058000,-177.54216715,0.0002,2]
[424978136,1781367058000,-200000.0,0.0002,2]
[424978084,1781367058000,-151.0,0.00019178,2]
[424978122,1781367058000,-168.44,0.00019658,2]
[424978111,1781367058000,-1228.0,0.00019348,2]
[424978127,1781367058000,-5015.28545236,0.000199,3]
[424978110,1781367058000,-383.0,0.00019348,2]
[424978085,1781367058000,-151.0,0.00019178,2]
[424978112,1781367058000,-921.73,0.000194,2]
[424978086,1781367058000,-151.0,0.00019178,2]
[424978087,1781367058000,-151.0,0.00019178,2]
[424978089,1781367058000,-567.721526,0.00019178,2]
[424978096,1781367058000,-567.721526,0.00019178,2]
[424978091,1781367058000,-567.721526,0.00019178,2]
[424978099,1781367058000,-3658.175,0.00019194,2]
[424978093,1781367058000,-567.721526,0.00019178,2]
[424978090,1781367058000,-567.721526,0.00019178,2]
[424978097,1781367058000,-6076.0,0.00019194,2]
[424978095,1781367058000,-567.721526,0.00019178,2]
[424978092,1781367058000,-567.721526,0.00019178,2]
[424978102,1781367058000,-10055.58894355,0.000193,2]
[424978109,1781367058000,-1359.0,0.00019348,2]
[424978094,1781367058000,-567.721526,0.00019178,2]
[424978107,1781367058000,-150.225,0.00019348,2]
[424978104,1781367058000,-150.0,0.00019348,2]
[424978105,1781367058000,-150.0,0.00019348,2]
[424978106,1781367058000,-150.0,0.00019348,2]
[424978103,1781367058000,-10000.0,0.00019332,2]
[424978100,1781367058000,-439.51,0.000192,7]
[424978101,1781367058000,-200.0,0.00019277,2]
[424978098,1781367058000,-1214.0,0.00019194,2]
[424978108,1781367058000,-3557.0,0.00019348,2]
[424978176,1781367059000,-352.0,0.0002,2]
[424978178,1781367059000,-1048.560609,0.0002,2]
[424978173,1781367059000,-567.721526,0.0002,2]
[424978174,1781367059000,-567.721526,0.0002,2]
[424978180,1781367059000,-1161.0,0.0002,2]
[424978159,1781367059000,-173.310699,0.0002,2]
[424978181,1781367059000,-151.0,0.0002,2]
[424978182,1781367059000,-151.0,0.0002,2]
[424978170,1781367059000,-3793.229884,0.0002,2]
[424978171,1781367059000,-567.721526,0.0002,2]
[424978172,1781367059000,-567.721526,0.0002,2]
[424978175,1781367059000,-1048.560609,0.0002,2]
[424978177,1781367059000,-1048.560609,0.0002,2]
[424978186,1781367059000,-401.0,0.0002,2]
[424978187,1781367059000,-151.0,0.0002,2]
[424978191,1781367059000,-1720.497988,0.0002,2]
[424978183,1781367059000,-427.0,0.0002,2]
[424978184,1781367059000,-151.0,0.0002,2]
[424978185,1781367059000,-151.0,0.0002,2]
[424978189,1781367059000,-1720.497988,0.0002,2]
[424978193,1781367059000,-471.0,0.0002,2]
[424978192,1781367059000,-1720.497988,0.0002,2]
[424978190,1781367059000,-1720.497988,0.0002,2]
[424978194,1781367059000,-1813.0,0.0002,2]
[424978188,1781367059000,-397.0,0.0002,2]
[424978168,1781367059000,-3793.229884,0.0002,2]
[424978179,1781367059000,-1048.560609,0.0002,2]
[424978165,1781367059000,-2981.0,0.0002,2]
[424978142,1781367059000,-300000.0,0.0002,2]
[424978166,1781367059000,-3793.229884,0.0002,2]
[424978196,1781367059000,-5091.7,0.0002,2]
[424978139,1781367059000,-289395.0,0.0002,2]
[424978145,1781367059000,-2999.75329311,0.0002,7]
[424978141,1781367059000,-177.4,0.0002,2]
[424978143,1781367059000,-3333.97745996,0.0002,20]
[424978144,1781367059000,-911.0,0.0002,2]
[424978140,1781367059000,-400.0,0.0002,2]
[424978147,1781367059000,-151.0,0.0002,2]
[424978156,1781367059000,-151.0,0.0002,2]
[424978155,1781367059000,-151.0,0.0002,2]
[424978146,1781367059000,-540.1049187,0.0002,2]
[424978157,1781367059000,-151.0,0.0002,2]
[424978169,1781367059000,-3793.229884,0.0002,2]
[424978149,1781367059000,-151.0,0.0002,2]
[424978148,1781367059000,-151.0,0.0002,2]
[424978152,1781367059000,-1932.199582,0.0002,2]
[424978153,1781367059000,-151.0,0.0002,2]
[424978150,1781367059000,-1096.82170129,0.0002,2]
[424978154,1781367059000,-151.0,0.0002,2]
[424978158,1781367059000,-151.0,0.0002,2]
[424978161,1781367059000,-173.310699,0.0002,2]
[424978163,1781367059000,-151.0,0.0002,2]
[424978160,1781367059000,-173.310699,0.0002,2]
[424978164,1781367059000,-154.309099,0.0002,2]
[424978162,1781367059000,-173.310699,0.0002,2]
[424978167,1781367059000,-523.0,0.0002,2]
[424978151,1781367059000,-172.0,0.0002,2]
[424978197,1781367059000,-595.046452,0.0002,2]
[424978234,1781367059000,-1536.04360648,0.00020505,2]
[424978206,1781367059000,-177.54216715,0.000202,2]
[424978226,1781367059000,-1328.27659266,0.00020505,2]
[424978231,1781367059000,-155.09624286,0.00020505,2]
[424978230,1781367059000,-200.0,0.00020505,2]
[424978235,1781367059000,-160.13511027,0.00020505,2]
[424978241,1781367059000,-160.43235665,0.00020505,2]
[424978253,1781367059000,-151.0,0.00020505,2]
[424978232,1781367059000,-1481.2378076,0.00020505,2]
[424978233,1781367059000,-578.20924308,0.00020505,2]
[424978237,1781367059000,-160.99452017,0.00020505,2]
[424978236,1781367059000,-151.0,0.00020505,2]
[424978239,1781367059000,-237.05488949,0.00020505,2]
[424978238,1781367059000,-151.0,0.00020505,2]
[424978228,1781367059000,-209.40437684,0.00020505,2]
[424978240,1781367059000,-693.39197629,0.00020505,2]
[424978249,1781367059000,-500.0,0.00020505,2]
[424978242,1781367059000,-209.40437684,0.00020505,2]
[424978244,1781367059000,-500.0,0.00020505,2]
[424978245,1781367059000,-500.0,0.00020505,2]
[424978252,1781367059000,-500.0,0.00020505,2]
[424978251,1781367059000,-4853.74383408,0.00020505,2]
[424978246,1781367059000,-721.12765534,0.00020505,2]
[424978250,1781367059000,-152.0,0.00020505,2]
[424978247,1781367059000,-209.40437684,0.00020505,2]
[424978248,1781367059000,-151.0,0.00020505,2]
[424978255,1781367059000,-500.0,0.00020505,2]
[424978195,1781367059000,-348.0,0.0002,2]
[424978243,1781367059000,-690.84003602,0.00020505,2]
[424978225,1781367059000,-200.56199589,0.00020505,2]
[424978254,1781367059000,-152.0,0.00020505,2]
[424978229,1781367059000,-1428.38747117,0.00020505,2]
[424978227,1781367059000,-1377.42282658,0.00020505,2]
[424978198,1781367059000,-595.046452,0.0002,2]
[424978201,1781367059000,-282.0,0.0002,2]
[424978204,1781367059000,-151.0,0.00020115,2]
[424978199,1781367059000,-595.046452,0.0002,2]
[424978200,1781367059000,-595.046452,0.0002,2]
[424978202,1781367059000,-10055.58894355,0.000201,2]
[424978203,1781367059000,-200.0,0.00020115,2]
[424978205,1781367059000,-2319.72410669,0.00020115,2]
[424978219,1781367059000,-151.0,0.00020505,2]
[424978213,1781367059000,-300.0,0.00020504,2]
[424978209,1781367059000,-177.54216715,0.000204,2]
[424978210,1781367059000,-504.0,0.00020416,4]
[424978207,1781367059000,-10055.58894355,0.000203,2]
[424978218,1781367059000,-1191.11104074,0.00020505,2]
[424978222,1781367059000,-1280.88388877,0.00020505,2]
[424978224,1781367059000,-272.93901,0.00020505,2]
[424978223,1781367059000,-174.61919141,0.00020505,2]
[424978208,1781367059000,-2020.9,0.00020381,2]
[424978221,1781367059000,-156.587,0.00020505,2]
[424978220,1781367059000,-1235.18214925,0.00020505,2]
[424978216,1781367059000,-1107.63007,0.00020505,2]
[424978212,1781367059000,-377.99479175,0.00020504,2]
[424978214,1781367059000,-1030.0,0.00020505,2]
[424978215,1781367059000,-1068.11,0.00020505,2]
[424978217,1781367059000,-1148.61238259,0.00020505,2]
[424978211,1781367059000,-10055.58894355,0.000205,2]
[424978294,1781367060000,-151.0,0.0002089,2]
[424978293,1781367060000,-690.84003602,0.0002089,2]
[424978289,1781367060000,-921.73,0.000208,2]
[424978290,1781367060000,-500.0,0.00020833,2]
[424978287,1781367060000,-690.84003602,0.0002078,2]
[424978286,1781367060000,-151.0,0.00020725,2]
[424978288,1781367060000,-151.0,0.0002078,2]
[424978292,1781367060000,-151.0,0.00020835,2]
[424978280,1781367060000,-151.0,0.00020663,2]
[424978291,1781367060000,-690.84003602,0.00020835,2]
[424978295,1781367060000,-10055.58894355,0.000209,2]
[424978300,1781367060000,-151.0,0.00021,2]
[424978308,1781367060000,-1932.199582,0.00021,2]
[424978298,1781367060000,-643.50629944,0.00020983,2]
[424978299,1781367060000,-690.84003602,0.00021,2]
[424978297,1781367060000,-151.0,0.00020945,2]
[424978302,1781367060000,-1512.85980484,0.00021,2]
[424978303,1781367060000,-200.0,0.00021,2]
[424978306,1781367060000,-160.0,0.00021,7]
[424978304,1781367060000,-911.0,0.00021,2]
[424978305,1781367060000,-1239.74425022,0.00021,7]
[424978279,1781367060000,-200.0,0.00020663,2]
[424978307,1781367060000,-172.0,0.00021,2]
[424978296,1781367060000,-690.84003602,0.00020945,2]
[424978278,1781367060000,-151.0,0.00020615,2]
[424978268,1781367060000,-209.40437684,0.00020505,2]
[424978283,1781367060000,-151.0,0.0002067,2]
[424978310,1781367060000,-523.0,0.00021,2]
[424978258,1781367060000,-500.0,0.00020505,2]
[424978264,1781367060000,-152.0,0.00020505,2]
[424978259,1781367060000,-152.0,0.00020505,2]
[424978256,1781367060000,-152.0,0.00020505,2]
[424978257,1781367060000,-500.0,0.00020505,2]
[424978260,1781367060000,-500.0,0.00020505,2]
[424978263,1781367060000,-500.0,0.00020505,2]
[424978261,1781367060000,-152.0,0.00020505,2]
[424978262,1781367060000,-500.0,0.00020505,2]
[424978269,1781367060000,-152.0,0.00020505,2]
[424978276,1781367060000,-177.54216715,0.000206,2]
[424978267,1781367060000,-152.0,0.00020505,2]
[424978270,1781367060000,-152.0,0.00020505,2]
[424978266,1781367060000,-152.0,0.00020505,2]
[424978271,1781367060000,-152.0,0.00020505,2]
[424978272,1781367060000,-9552.16786547,0.00020505,2]
[424978275,1781367060000,-1992.3116289,0.0002056,2]
[424978274,1781367060000,-151.0,0.0002056,2]
[424978282,1781367060000,-690.84003602,0.0002067,2]
[424978284,1781367060000,-10055.58894355,0.000207,2]
[424978277,1781367060000,-690.84003602,0.00020615,2]
[424978281,1781367060000,-2405.55389863,0.00020663,2]
[424978285,1781367060000,-690.84003602,0.00020725,2]
[424978265,1781367060000,-500.0,0.00020505,2]
[424978309,1781367060000,-2981.0,0.00021,2]
[424978273,1781367060000,-690.84003602,0.0002056,2]
[424978312,1781367060000,-1161.0,0.00021,2]
[424978350,1781367060000,-225.18697532,0.00021601,2]
[424978347,1781367060000,-10055.58894355,0.000216,2]
[424978348,1781367060000,-187.78006524,0.00021601,2]
[424978344,1781367060000,-1512.85980484,0.000214,2]
[424978349,1781367060000,-272.93901,0.00021601,2]
[424978351,1781367060000,-160.13511027,0.00021601,2]
[424978363,1781367060000,-1556.0,0.000219,7]
[424978341,1781367060000,-2494.55939288,0.00021211,2]
[424978346,1781367060000,-1512.85980484,0.000216,2]
[424978343,1781367060000,-1712.17,0.0002137,2]
[424978342,1781367060000,-504.0,0.00021221,5]
[424978339,1781367060000,-151.0,0.00021211,2]
[424978353,1781367060000,-151.0,0.00021601,2]
[424978356,1781367060000,-225.18697532,0.00021601,2]
[424978352,1781367060000,-160.99452017,0.00021601,2]
[424978354,1781367060000,-225.18697532,0.00021601,2]
[424978357,1781367060000,-5091.7,0.00021664,2]
[424978359,1781367060000,-200.0,0.00021759,2]
[424978360,1781367060000,-2586.85809042,0.00021759,2]
[424978362,1781367060000,-217.15233878,0.00021874,2]
[424978361,1781367060000,-10055.58894355,0.000218,2]
[424978358,1781367060000,-151.0,0.00021759,2]
[424978364,1781367060000,-1512.85980484,0.000219,2]
[424978314,1781367060000,-401.0,0.00021,2]
[424978355,1781367060000,-151.0,0.00021601,2]
[424978340,1781367060000,-200.0,0.00021211,2]
[424978345,1781367060000,-10055.58894355,0.000214,2]
[424978337,1781367060000,-1512.85980484,0.000212,2]
[424978318,1781367060000,-150.0,0.00021,2]
[424978332,1781367060000,-217.15233878,0.00021053,2]
[424978313,1781367060000,-427.0,0.00021,2]
[424978319,1781367060000,-348.0,0.00021,2]
[424978317,1781367060000,-1813.0,0.00021,2]
[424978311,1781367060000,-352.0,0.00021,2]
[424978316,1781367060000,-471.0,0.00021,2]
[424978315,1781367060000,-397.0,0.00021,2]
[424978320,1781367060000,-282.0,0.00021,2]
[424978322,1781367060000,-272.93901,0.00021053,2]
[424978323,1781367060000,-217.15233878,0.00021053,2]
[424978325,1781367060000,-155.09624289,0.00021053,2]
[424978321,1781367060000,-181.08010149,0.00021053,2]
[424978328,1781367060000,-151.0,0.00021053,2]
[424978335,1781367060000,-151.0,0.00021055,2]
[424978324,1781367060000,-200.0,0.00021053,2]
[424978336,1781367060000,-10055.58894355,0.000211,2]
[424978338,1781367060000,-443.3,0.00021205,2]
[424978333,1781367060000,-5088.34743037,0.00021053,2]
[424978330,1781367060000,-217.15233878,0.00021053,2]
[424978334,1781367060000,-690.8400361,0.00021055,2]
[424978327,1781367060000,-160.99452017,0.00021053,2]
[424978329,1781367060000,-487.97646921,0.00021053,2]
[424978326,1781367060000,-160.13511027,0.00021053,2]
[424978331,1781367060000,-151.0,0.00021053,2]
[424978402,1781367061000,-10055.58894355,0.000222,2]
[424978395,1781367061000,-151.0,0.00022149,2]
[424978396,1781367061000,-233.5188934,0.00022149,2]
[424978404,1781367061000,-800.0,0.00022286,8]
[424978398,1781367061000,-233.5188934,0.00022149,2]
[424978405,1781367061000,-800.0,0.00022286,8]
[424978397,1781367061000,-151.0,0.00022149,2]
[424978406,1781367061000,-800.0,0.00022286,8]
[424978400,1781367061000,-1214.0,0.00022194,2]
[424978393,1781367061000,-160.13511027,0.00022149,2]
[424978399,1781367061000,-6076.0,0.00022194,2]
[424978419,1781367061000,-1512.85980484,0.000223,2]
[424978407,1781367061000,-800.0,0.00022286,8]
[424978403,1781367061000,-800.0,0.00022286,8]
[424978408,1781367061000,-800.0,0.00022286,8]
[424978409,1781367061000,-800.0,0.00022286,8]
[424978410,1781367061000,-805.64967789,0.00022286,8]
[424978413,1781367061000,-800.0,0.00022286,8]
[424978412,1781367061000,-800.0,0.00022286,8]
[424978411,1781367061000,-800.0,0.00022286,8]
[424978415,1781367061000,-800.0,0.00022286,8]
[424978414,1781367061000,-800.0,0.00022286,8]
[424978416,1781367061000,-800.0,0.00022286,8]
[424978394,1781367061000,-160.99452017,0.00022149,2]
[424978401,1781367061000,-3644.0,0.00022194,2]
[424978392,1781367061000,-233.5188934,0.00022149,2]
[424978368,1781367061000,-206.0,0.00021976,2]
[424978391,1781367061000,-272.93901,0.00022149,2]
[424978366,1781367061000,-150.0,0.00021918,2]
[424978418,1781367061000,-826.87228175,0.00022286,8]
[424978365,1781367061000,-5000.0,0.00021918,2]
[424978367,1781367061000,-172.02,0.00021918,2]
[424978370,1781367061000,-10055.58894355,0.00022,2]
[424978371,1781367061000,-450.0,0.00022,2]
[424978369,1781367061000,-1000.0,0.00022,10]
[424978372,1781367061000,-911.0,0.00022,2]
[424978374,1781367061000,-1932.199582,0.00022,2]
[424978378,1781367061000,-352.0,0.00022,2]
[424978379,1781367061000,-1161.0,0.00022,2]
[424978373,1781367061000,-172.0,0.00022,2]
[424978380,1781367061000,-427.0,0.00022,2]
[424978381,1781367061000,-401.0,0.00022,2]
[424978382,1781367061000,-397.0,0.00022,2]
[424978383,1781367061000,-471.0,0.00022,2]
[424978384,1781367061000,-1813.0,0.00022,2]
[424978376,1781367061000,-2981.0,0.00022,2]
[424978377,1781367061000,-523.0,0.00022,2]
[424978375,1781367061000,-318.957658,0.00022,2]
[424978385,1781367061000,-348.0,0.00022,2]
[424978389,1781367061000,-1512.85980484,0.000221,2]
[424978387,1781367061000,-282.0,0.00022,2]
[424978388,1781367061000,-504.0,0.00022026,5]
[424978386,1781367061000,-613.01,0.00022,2]
[424978390,1781367061000,-194.72792766,0.00022149,2]
[424978417,1781367061000,-800.0,0.00022286,8]
[424978438,1781367061000,-3671.55600775,0.000226,2]
[424978429,1781367061000,-1359.0,0.00022348,2]
[424978447,1781367061000,-151.0,0.00022697,2]
[424978454,1781367061000,-2781.82699784,0.00022855,2]
[424978453,1781367061000,-200.0,0.00022855,2]
[424978455,1781367061000,-10055.58894355,0.000229,2]
[424978458,1781367061000,-238.74496257,0.00022979,2]
[424978461,1781367061000,-1512.85980484,0.00023,2]
[424978421,1781367061000,-263.94580706,0.00022307,2]
[424978457,1781367061000,-150.84439283,0.00022979,2]
[424978456,1781367061000,-252.22277331,0.00022979,2]
[424978462,1781367061000,-911.0,0.00023,2]
[424978459,1781367061000,-166.65960565,0.00022979,2]
[424978443,1781367061000,-160.13511027,0.00022697,2]
[424978460,1781367061000,-285.0,0.00022997,2]
[424978465,1781367061000,-172.0,0.00023,2]
[424978467,1781367061000,-2981.0,0.00023,2]
[424978466,1781367061000,-1932.199582,0.00023,2]
[424978470,1781367061000,-1161.0,0.00023,2]
[424978472,1781367061000,-401.0,0.00023,2]
[424978468,1781367061000,-523.0,0.00023,2]
[424978474,1781367061000,-471.0,0.00023,2]
[424978469,1781367061000,-352.0,0.00023,2]
[424978473,1781367061000,-397.0,0.00023,2]
[424978471,1781367061000,-427.0,0.00023,2]
[424978475,1781367061000,-1813.0,0.00023,2]
[424978464,1781367061000,-1017.51131627,0.00023,2]
[424978448,1781367061000,-242.15909246,0.00022697,2]
[424978463,1781367061000,-1000.0,0.00023,14]
[424978451,1781367061000,-532.96928739,0.0002271,2]
[424978430,1781367061000,-383.0,0.00022348,2]
[424978420,1781367061000,-921.73,0.000223,7]
[424978423,1781367061000,-2682.57183977,0.00022307,2]
[424978445,1781367061000,-151.0,0.00022697,2]
[424978428,1781367061000,-3557.0,0.00022348,2]
[424978426,1781367061000,-150.0,0.00022348,2]
[424978424,1781367061000,-150.0,0.00022348,2]
[424978425,1781367061000,-150.0,0.00022348,2]
[424978427,1781367061000,-150.0,0.00022348,2]
[424978432,1781367061000,-2020.9,0.00022353,2]
[424978434,1781367061000,-1435.1,0.00022466,2]
[424978431,1781367061000,-1228.0,0.00022348,2]
[424978422,1781367061000,-200.0,0.00022307,2]
[424978435,1781367061000,-1512.85980484,0.000225,2]
[424978433,1781367061000,-338.81,0.00022466,2]
[424978441,1781367061000,-272.93901,0.00022697,2]
[424978444,1781367061000,-160.99452022,0.00022697,2]
[424978449,1781367061000,-1512.85980484,0.000227,2]
[424978450,1781367061000,-10055.58894355,0.000227,2]
[424978446,1781367061000,-196.0564312,0.00022697,2]
[424978442,1781367061000,-242.15909246,0.00022697,2]
[424978439,1781367061000,-168.44,0.00022603,2]
[424978437,1781367061000,-9837.98781745,0.000225,2]
[424978440,1781367061000,-201.93286098,0.00022697,2]
[424978436,1781367061000,-10055.58894355,0.000225,2]
[424978452,1781367061000,-504.0,0.00022831,6]
[424978493,1781367062000,-153.0,0.00023275,5]
[424978492,1781367062000,-251.11897888,0.00023245,2]
[424978490,1781367062000,-151.0,0.00023245,2]
[424978488,1781367062000,-251.11897888,0.00023245,2]
[424978491,1781367062000,-151.0,0.00023245,2]
[424978487,1781367062000,-272.93901,0.00023245,2]
[424978489,1781367062000,-160.13511033,0.00023245,2]
[424978482,1781367062000,-225.18697532,0.00023243,2]
[424978479,1781367062000,-150.0,0.00023014,2]
[424978484,1781367062000,-151.0,0.00023244,2]
[424978480,1781367062000,-10055.58894355,0.000231,2]
[424978478,1781367062000,-282.0,0.00023,2]
[424978481,1781367062000,-381.7847365,0.000232,2]
[424978477,1781367062000,-167.19819571,0.00023,2]
[424978485,1781367062000,-747.80937859,0.00023244,2]
[424978476,1781367062000,-348.0,0.00023,2]
[424978483,1781367062000,-599.60298507,0.00023244,2]
[424978494,1781367062000,-5091.7,0.00023327,7]
[424978486,1781367062000,-209.40437684,0.00023245,2]
[424978497,1781367062000,-2884.75459676,0.00023403,2]
[424978495,1781367062000,-10055.58894355,0.000234,2]
[424978512,1781367062000,-334.19562712,0.00023951,2]
[424978510,1781367062000,-151.12731974,0.000238,2]
[424978514,1781367062000,-300.0,0.00023999,2]
[424978509,1781367062000,-10055.58894355,0.000238,2]
[424978511,1781367062000,-500.0,0.00023836,2]
[424978506,1781367062000,-151.0,0.00023793,2]
[424978507,1781367062000,-151.0,0.00023793,2]
[424978504,1781367062000,-272.93901,0.00023793,2]
[424978513,1781367062000,-2991.49051684,0.00023951,2]
[424978505,1781367062000,-260.4103811,0.00023793,2]
[424978502,1781367062000,-504.0,0.00023636,7]
[424978500,1781367062000,-10055.58894355,0.000236,2]